bitfinex/quotes_SOLUSD_20241209
["timestamp","ask_amount","ask_price","bid_price","bid_amount"]
[1733717789959,0.12549,232.48,232.34,15.05612454]
[1733717790159,0.12549,232.48,232.32,26.73806838]
[1733717790386,0.12549,232.48,232.32,13.40890784]
[1733717791273,23.902374,232.48,232.32,13.40890784]
[1733717791584,7.77960286,232.49,232.29,13.40890784]
[1733717791585,23.902374,232.46,232.29,13.40890784]
[1733717791880,20.0,232.43,232.29,13.40890784]
[1733717792071,20.0,232.43,232.27,41.67277623]
[1733717792072,0.12549,232.4,232.28,13.40890784]
[1733717792273,0.90407056,232.4,232.25,13.40890784]
[1733717793148,0.90407056,232.4,232.24,15.0309593]
[1733717793149,0.12549,232.4,232.26,13.32916054]
[1733717793579,0.12549,232.4,232.29,20.0]
[1733717793957,7.0675,232.41,232.31,13.32916054]
[1733717794863,0.12549,232.45,232.33,13.32916054]
[1733717795289,0.12549,232.43,232.33,20.0]
[1733717798484,0.53,232.46,232.36,13.32916054]
[1733717798793,0.53,232.46,232.37,13.32916054]
[1733717799450,0.53,232.46,232.36,13.32916054]
[1733717799889,0.53,232.46,232.35,13.32916054]
[1733717800257,0.53,232.46,232.34,57.10604454]
[1733717801494,0.53,232.46,232.35,20.0]
[1733717801884,0.53,232.46,232.37,20.0]
[1733717804599,0.53,232.46,232.34,37.10604454]
[1733717805098,0.53,232.46,232.37,20.0]
[1733717805885,0.12549,232.51,232.37,13.32916054]
[1733717806571,0.93198737,232.51,232.37,13.32916054]
[1733717806771,0.93198737,232.51,232.38,13.32916054]
[1733717807401,6.8779,232.52,232.42,33.32916054]
[1733717807599,6.8779,232.52,232.42,13.32916054]
[1733717807899,6.8779,232.52,232.41,13.32916054]
[1733717808212,6.8779,232.52,232.41,20.0]
[1733717808375,6.8779,232.52,232.4,13.32916054]
[1733717808702,6.8779,232.52,232.41,23.776884]
[1733717809711,6.8779,232.52,232.41,37.10604454]
[1733717809926,6.8779,232.52,232.43,13.32916054]
[1733717810087,6.8779,232.52,232.4,23.776884]
[1733717810292,6.8779,232.52,232.42,13.32916054]
[1733717810490,0.53,232.57,232.45,13.32916054]
[1733717810998,0.53,232.57,232.46,13.32916054]
[1733717811589,0.53,232.57,232.45,13.32916054]
[1733717811792,0.53,232.57,232.46,13.32916054]
[1733717812228,0.53,232.57,232.45,13.32916054]
[1733717812386,0.53,232.57,232.46,20.0]
[1733717812588,0.12549,232.56,232.42,23.776884]
[1733717814490,0.12549,232.54,232.43,20.0]
[1733717815525,0.12549,232.56,232.41,33.32916054]
[1733717815887,0.12549,232.54,232.41,33.32916054]
[1733717816327,0.12549,232.55,232.42,20.0]
[1733717816842,0.12549,232.56,232.42,33.32916054]
[1733717817706,0.12549,232.56,232.42,20.0]
[1733717818233,0.80635199,232.55,232.42,20.0]
[1733717818540,0.12549,232.54,232.42,20.0]
[1733717819037,0.12549,232.55,232.42,20.0]
[1733717819630,0.12549,232.53,232.42,20.0]
[1733717820064,23.902374,232.53,232.38,13.40890784]
[1733717820342,0.12549,232.51,232.37,13.40890784]
[1733717821321,0.12549,232.51,232.39,20.0]
[1733717823209,7.09219543,232.52,232.39,20.0]
[1733717823210,6.2856,232.52,232.4,23.776884]
[1733717823411,6.2856,232.52,232.44,13.32916054]
[1733717823638,6.9698,232.57,232.44,13.32916054]
[1733717824652,0.12549,232.56,232.44,13.32916054]
[1733717825844,0.12549,232.56,232.45,13.32916054]
[1733717826127,6.9698,232.57,232.46,23.776884]
[1733717826326,6.9698,232.57,232.44,13.32916054]
[1733717827450,0.12549,232.56,232.44,13.32916054]
[1733717827840,0.12549,232.56,232.42,23.776884]
[1733717827841,0.93179801,232.56,232.42,23.776884]
[1733717828053,0.93179801,232.56,232.39,26.73806838]
[1733717828220,20.0,232.54,232.39,23.776884]
[1733717828421,0.93195041,232.53,232.39,23.776884]
[1733717829425,0.93195041,232.53,232.41,20.0]
[1733717829628,0.93195041,232.53,232.38,13.32916054]
[1733717829629,0.93195041,232.53,232.4,20.0]
[1733717830139,0.12549,232.53,232.4,20.0]
[1733717830329,0.93190165,232.53,232.4,20.0]
[1733717831154,0.12549,232.53,232.41,20.0]
[1733717836276,0.93191695,232.53,232.41,20.0]
[1733717837369,0.93191695,232.53,232.38,26.73806838]
[1733717837370,0.93191695,232.53,232.38,13.40890784]
[1733717837528,0.93191695,232.53,232.37,15.11659466]
[1733717837730,0.93191695,232.53,232.37,13.40890784]
[1733717839355,0.93191695,232.53,232.37,23.776884]
[1733717840034,0.93191695,232.53,232.37,37.11401976]
[1733717840655,0.12549,232.53,232.41,20.0]
[1733717840972,6.9698,232.57,232.43,13.33713576]
[1733717841135,0.80631983,232.56,232.43,13.33713576]
[1733717841663,6.9698,232.57,232.43,13.33713576]
[1733717842611,6.9698,232.57,232.46,13.33713576]
[1733717843546,0.12549,232.56,232.46,13.33713576]
[1733717843743,0.53,232.57,232.48,13.33713576]
[1733717844479,6.2017,232.62,232.48,13.33713576]
[1733717844637,0.80611611,232.61,232.48,13.33713576]
[1733717845064,0.12549,232.6,232.48,13.33713576]
[1733717845849,0.12549,232.6,232.47,13.40890784]
[1733717846076,0.12549,232.58,232.45,13.40890784]
[1733717846388,0.12549,232.58,232.45,23.776884]
[1733717847474,0.93175719,232.58,232.45,23.776884]
[1733717848270,0.93175719,232.58,232.44,26.7460436]
[1733717848571,0.93175719,232.58,232.43,28.3026436]
[1733717848967,0.93175719,232.58,232.44,13.33713576]
[1733717850269,0.93175719,232.58,232.44,26.7460436]
[1733717850862,0.12549,232.58,232.46,13.33713576]
[1733717851472,6.2017,232.62,232.48,13.33713576]
[1733717851675,0.93161684,232.61,232.47,13.33713576]
[1733717851876,0.93161684,232.61,232.48,20.0]
[1733717852099,0.93161684,232.61,232.46,13.33713576]
[1733717852100,0.93161684,232.61,232.47,23.776884]
[1733717853268,0.93161684,232.61,232.49,20.0]
[1733717853885,0.93161684,232.61,232.47,20.0]
[1733717854087,0.12549,232.58,232.44,13.40890784]
[1733717854290,0.12549,232.58,232.44,26.7460436]
[1733717855470,0.12549,232.58,232.45,13.40890784]
[1733717856270,0.12549,232.58,232.45,26.7460436]
[1733717856999,0.12549,232.58,232.45,13.40890784]
[1733717857000,0.12549,232.56,232.45,13.40890784]
[1733717857176,0.93181576,232.56,232.44,13.40890784]
[1733717858004,6.5914,232.55,232.44,13.40890784]
[1733717858301,0.9318931,232.54,232.43,13.40890784]
[1733717859798,0.9318931,232.54,232.41,13.40890784]
[1733717860008,0.9318931,232.54,232.4,13.40890784]
[1733717860374,0.9318931,232.54,232.39,15.16038591]
[1733717860595,0.9318931,232.54,232.4,13.40890784]
[1733717860908,0.9318931,232.54,232.39,13.40890784]
[1733717861408,0.9318931,232.54,232.4,13.40890784]
[1733717861578,0.9318931,232.54,232.39,13.40890784]
[1733717862284,0.9318931,232.54,232.4,13.40890784]
[1733717863673,0.9318931,232.54,232.39,13.40890784]
[1733717865388,0.9318931,232.54,232.4,13.40890784]
[1733717865798,0.9318931,232.54,232.38,38.66294816]
[1733717865799,0.9318931,232.54,232.39,13.40890784]
[1733717866487,0.12549,232.51,232.39,13.40890784]
[1733717866814,0.12549,232.49,232.39,13.40890784]
[1733717867017,0.93207413,232.49,232.39,13.40890784]
[1733717867585,0.93207413,232.49,232.37,26.81781569]
[1733717867889,0.93207413,232.49,232.38,20.0]
[1733717869687,0.12549,232.47,232.37,20.0]
[1733717869897,0.9321653,232.47,232.37,20.0]
[1733717870104,0.9321653,232.47,232.34,13.40890784]
[1733717870514,0.9321653,232.47,232.33,13.40890784]
[1733717871607,20.12549,232.45,232.3,13.40890784]
[1733717871795,0.12549,232.42,232.29,13.40890784]
[1733717871998,0.93234447,232.42,232.29,13.40890784]
[1733717872208,0.93234447,232.42,232.28,13.40890784]
[1733717872396,0.12549,232.4,232.27,1.75290272]
[1733717872596,0.93237341,232.4,232.25,21.94260108]
[1733717872812,0.93237341,232.4,232.25,10.27240382]
[1733717873009,0.93237341,232.4,232.26,13.40890784]
[1733717873209,0.93237341,232.4,232.25,10.27240382]
[1733717873210,0.12549,232.38,232.25,13.40890784]
[1733717873418,0.9324844,232.38,232.25,13.40890784]
[1733717873632,0.9324844,232.38,232.24,13.40890784]
[1733717874217,0.9324844,232.38,232.22,49.42433098]
[1733717874218,20.9324844,232.38,232.23,13.40890784]
[1733717874722,20.9324844,232.38,232.22,36.01542313]
[1733717875110,20.9324844,232.38,232.22,13.40890784]
[1733717875295,20.9324844,232.38,232.2,21.94260108]
[1733717875490,20.9324844,232.38,232.2,8.53369324]
[1733717875692,0.12549,232.36,232.2,8.53369324]
[1733717875911,0.93261233,232.36,232.19,23.7168122]
[1733717876117,0.12549,232.34,232.19,21.94260108]
[1733717876329,0.93263251,232.34,232.21,8.53369324]
[1733717877830,0.93263251,232.34,232.2,8.53369324]
[1733717878997,0.12549,232.34,232.25,8.53369324]
[1733717879398,0.12549,232.34,232.24,8.53369324]
[1733717879611,0.12549,232.34,232.21,20.0]
[1733717879612,0.12549,232.34,232.23,8.53369324]
[1733717879789,0.12549,232.34,232.22,8.53369324]
[1733717880431,0.80707537,232.33,232.21,20.0]
[1733717880718,0.12549,232.32,232.22,20.0]
[1733717881500,0.12549,232.33,232.21,20.0]
[1733717883696,0.12549,232.33,232.22,8.53369324]
[1733717883918,0.12549,232.34,232.24,8.53369324]
[1733717884125,6.1951,232.35,232.25,8.53369324]
[1733717884403,6.1951,232.35,232.26,8.53369324]
[1733717885429,6.1951,232.35,232.22,23.776884]
[1733717885430,6.1951,232.35,232.24,8.53369324]
[1733717885805,6.1951,232.35,232.23,8.53369324]
[1733717886329,6.1951,232.35,232.24,8.53369324]
[1733717887050,6.1951,232.35,232.25,8.53369324]
[1733717887704,6.1951,232.35,232.23,8.53369324]
[1733717888427,6.1951,232.35,232.24,8.53369324]
[1733717889301,6.1951,232.35,232.25,8.53369324]
[1733717889843,6.1951,232.35,232.24,8.53369324]
[1733717890005,6.1951,232.35,232.22,32.31057724]
[1733717890206,6.1951,232.35,232.22,23.776884]
[1733717890517,0.93254638,232.34,232.22,20.0]
[1733717891229,0.93254638,232.34,232.23,20.0]
[1733717892021,0.93254638,232.34,232.19,8.53369324]
[1733717892622,20.12549,232.32,232.17,5.30529749]
[1733717892924,0.12549,232.3,232.16,10.05479324]
[1733717893532,0.12549,232.3,232.18,8.53369324]
[1733717894044,0.12549,232.3,232.17,8.53369324]
[1733717894342,0.12549,232.3,232.2,20.0]
[1733717894546,0.12549,232.3,232.16,30.05479324]
[1733717894717,0.12549,232.3,232.18,20.0]
[1733717894718,6.3993,232.29,232.18,20.0]
[1733717894919,0.12549,232.27,232.18,20.0]
[1733717895446,0.12549,232.27,232.17,20.0]
[1733717895749,0.12549,232.25,232.11,5.80250469]
[1733717895916,0.12549,232.25,232.13,8.53369324]
[1733717897130,0.53,232.26,232.17,28.53369324]
[1733717897512,0.53,232.26,232.19,20.0]
[1733717898445,0.53,232.26,232.15,8.53369324]
[1733717898745,0.53,232.26,232.18,20.0]
[1733717899340,0.53,232.26,232.17,20.0]
[1733717899658,0.12549,232.25,232.15,20.0]
[1733717899827,0.12549,232.25,232.16,20.0]
[1733717900643,0.12549,232.23,232.11,2.25170922]
[1733717900828,0.12549,232.23,232.14,20.0]
[1733717901543,0.12549,232.24,232.13,8.53369324]
[1733717901740,0.12549,232.24,232.14,8.53369324]
[1733717901955,0.53,232.26,232.19,20.0]
[1733717902828,0.53,232.26,232.19,8.53369324]
[1733717903155,6.3993,232.29,232.22,8.53369324]
[1733717903671,0.53,232.32,232.22,8.53369324]
[1733717903862,0.53,232.32,232.23,8.53369324]
[1733717904556,6.2378,232.35,232.24,8.53369324]
[1733717904752,6.2378,232.35,232.25,8.53369324]
[1733717904936,6.2378,232.35,232.23,8.53369324]
[1733717905131,6.2378,232.35,232.23,13.35170773]
[1733717906941,0.93250394,232.34,232.22,13.35170773]
[1733717907146,6.2378,232.35,232.23,13.35170773]
[1733717907945,0.12549,232.34,232.22,13.35170773]
[1733717908249,0.93252341,232.34,232.22,20.0]
[1733717908443,0.93252341,232.34,232.23,20.0]
[1733717909037,0.93252341,232.34,232.24,20.0]
[1733717909462,0.93252341,232.34,232.23,20.0]
[1733717909863,0.12549,232.34,232.23,20.0]
[1733717910185,0.12549,232.34,232.23,13.35170773]
[1733717910468,0.12549,232.34,232.22,13.35170773]
[1733717915653,0.12549,232.34,232.21,57.12859173]
[1733717915842,0.12549,232.34,232.22,13.35170773]
[1733717916464,0.12549,232.34,232.23,13.35170773]
[1733717917471,6.2378,232.35,232.24,13.35170773]
[1733717920233,0.53,232.38,232.29,33.35170773]
[1733717920437,0.53,232.38,232.3,13.35170773]
[1733717920962,0.53,232.38,232.28,13.35170773]
[1733717921164,0.53,232.38,232.31,20.0]
[1733717921780,0.53,232.38,232.28,20.0]
[1733717922068,0.12549,232.37,232.23,1.752459]
[1733717922245,0.93251764,232.37,232.23,23.776884]
[1733717922445,0.93251764,232.37,232.23,37.18579184]
[1733717923252,0.93251764,232.37,232.23,23.776884]
[1733717923447,0.93251764,232.37,232.23,13.40890784]
[1733717923663,0.93251764,232.37,232.22,15.12951969]
[1733717923861,0.93251764,232.37,232.22,13.40890784]
[1733717924676,0.12549,232.35,232.22,13.40890784]
[1733717924993,0.12549,232.35,232.2,26.81781569]
[1733717924994,0.93265106,232.35,232.2,13.40890784]
[1733717925286,0.93265106,232.35,232.2,26.76061557]
[1733717925451,0.93265106,232.35,232.21,13.35170773]
[1733717926380,0.93265106,232.35,232.2,13.40890784]
[1733717926381,0.93265106,232.35,232.2,26.76061557]
[1733717926953,0.93265106,232.35,232.21,13.40890784]
[1733717927154,0.93265106,232.35,232.21,21.95573047]
[1733717929002,0.93265106,232.35,232.2,21.95573047]
[1733717932275,0.93265106,232.35,232.2,8.54682263]
[1733717932467,0.93265106,232.35,232.2,21.95573047]
[1733717933064,0.93265106,232.35,232.2,8.54682263]
[1733717935183,0.93265106,232.35,232.22,20.0]
[1733717935408,0.93265106,232.35,232.19,15.17099568]
[1733717935409,0.12549,232.32,232.19,13.40890784]
[1733717935568,0.9327166,232.32,232.2,20.0]
[1733717936169,6.1428,232.29,232.16,15.11200362]
[1733717936380,0.12549,232.27,232.16,15.11200362]
[1733717937082,0.12549,232.25,232.16,13.40890784]
[1733717937280,0.93289959,232.25,232.15,13.40890784]
[1733717938604,0.93289959,232.25,232.14,15.16222923]
[1733717938779,0.93289959,232.25,232.13,26.81781569]
[1733717938780,0.93289959,232.25,232.13,13.40890784]
[1733717938980,0.93289959,232.25,232.14,20.0]
[1733717939174,0.93289959,232.25,232.13,1.70673012]
[1733717939419,0.93289959,232.25,232.13,20.0]
[1733717940279,0.12549,232.25,232.13,28.54682263]
[1733717940514,0.12549,232.25,232.14,8.54682263]
[1733717940702,20.53,232.26,232.15,8.54682263]
[1733717941094,20.53,232.26,232.14,8.54682263]
[1733717941774,0.53,232.26,232.18,8.54682263]
[1733717942311,0.53,232.26,232.18,20.0]
[1733717942874,0.53,232.26,232.14,13.40890784]
[1733717943094,0.93289622,232.25,232.12,13.40890784]
[1733717943608,0.93289622,232.25,232.11,15.66982854]
[1733717943907,0.93289622,232.25,232.11,2.2609207]
[1733717943908,0.12549,232.23,232.11,2.2609207]
[1733717944077,0.93300278,232.23,232.11,2.2609207]
[1733717945366,0.12549,232.21,232.11,2.2609207]
[1733717945575,0.93310803,232.21,232.11,0.4972072]
[1733717949603,6.2252,232.22,232.11,0.4972072]
[1733717950415,0.80753526,232.21,232.11,0.4972072]
[1733717951892,7.03274402,232.22,232.11,20.4972072]
[1733717952214,7.03274402,232.22,232.11,0.4972072]
[1733717953314,23.902374,232.21,232.11,0.4972072]
[1733717953493,0.12549,232.19,232.11,0.4972072]
[1733717955204,23.902374,232.19,232.11,0.4972072]
[1733717955389,0.12549,232.17,232.11,0.4972072]
[1733717956311,0.12549,232.15,232.11,0.4972072]
[1733717956823,1.3376855,232.16,231.98,8.54682263]
[1733717956824,0.12549,232.13,231.98,8.54682263]
[1733717956984,0.12549,232.13,231.99,8.54682263]
[1733717957183,0.93329348,232.13,231.96,12.48697135]
[1733717957378,0.93329348,232.13,231.99,8.54682263]
[1733717957619,0.12549,232.13,232.01,8.54682263]
[1733717957920,0.12549,232.13,232.02,8.54682263]
[1733717958117,6.6153,232.14,232.03,8.54682263]
[1733717958283,20.0,232.11,231.96,1.70957135]
[1733717958483,0.12549,232.13,232.0,8.54682263]
[1733717958913,0.12549,232.13,231.99,8.54682263]
[1733717959134,0.93328377,232.13,231.99,8.54682263]
[1733717959721,0.12549,232.13,232.02,20.0]
[1733717959932,0.12549,232.13,232.0,8.54682263]
[1733717959933,0.12549,232.13,232.01,8.54682263]
[1733717960234,6.6153,232.14,232.02,20.0]
[1733717960412,0.12549,232.18,232.05,8.54682263]
[1733717960609,0.93313976,232.18,232.05,8.54682263]
[1733717960832,0.80764976,232.18,232.05,8.54682263]
[1733717961021,6.6153,232.19,232.05,8.54682263]
[1733717961331,0.80763832,232.18,232.04,8.54682263]
[1733717962526,0.12549,232.17,232.04,8.54682263]
[1733717962725,0.12549,232.17,232.08,20.0]
[1733717962934,6.6153,232.19,232.08,8.54682263]
[1733717964010,6.6153,232.27,232.1,8.54682263]
[1733717964215,6.6153,232.27,232.11,8.54682263]
[1733717964216,20.0,232.24,232.11,8.54682263]
[1733717965326,20.0,232.24,232.1,8.54682263]
[1733717965722,0.12549,232.23,232.1,8.54682263]
[1733717967942,0.12549,232.23,232.11,28.54682263]
[1733717968460,20.0,232.24,232.12,8.54682263]
[1733717968612,6.6153,232.27,232.16,8.54682263]
[1733717969039,6.6153,232.27,232.17,8.54682263]
[1733717970022,6.6153,232.27,232.17,20.0]
[1733717972142,6.6153,232.27,232.17,28.54682263]
[1733717972521,6.6153,232.27,232.17,20.0]
[1733717976148,0.12549,232.26,232.15,20.0]
[1733717976365,0.93278141,232.26,232.15,20.0]
[1733717976540,0.93278141,232.26,232.12,10.11972263]
[1733717977453,0.93278141,232.26,232.12,1.5729]
[1733717978049,0.93278141,232.26,232.1,19.31792263]
[1733717978050,0.93278141,232.26,232.1,21.07759811]
[1733717978623,0.93278141,232.26,232.13,20.0]
[1733717979847,0.12549,232.23,232.07,1.575]
[1733717980049,0.12549,232.21,232.07,3.27304653]
[1733717980244,0.93308102,232.21,232.07,1.575]
[1733717980633,0.12549,232.19,232.02,10.7747]
[1733717980938,0.12549,232.16,232.02,1.71709846]
[1733717981147,0.93324639,232.16,232.01,1.575]
[1733717981339,0.93324639,232.16,232.0,8.54682263]
[1733717981542,0.93324639,232.16,232.01,8.54682263]
[1733717981745,0.93324639,232.16,232.0,8.54682263]
[1733717983041,0.93324639,232.16,232.01,28.54682263]
[1733717983368,0.93324639,232.16,232.01,20.0]
[1733717983543,0.93324639,232.16,232.01,28.54682263]
[1733717983745,0.93324639,232.16,232.01,20.0]
[1733717984952,23.776884,232.15,232.01,20.0]
[1733717985158,0.93338613,232.14,232.02,20.0]
[1733717985673,0.12549,232.12,232.01,20.0]
[1733717985974,0.933379,232.12,232.02,20.0]
[1733717986190,0.933379,232.12,231.95,1.575]
[1733717986474,20.0,232.1,231.95,11.82275424]
[1733717986685,0.80797725,232.09,231.97,8.54682263]
[1733717986841,20.0,232.1,231.97,8.54682263]
[1733717987045,0.93340392,232.12,231.99,8.54682263]
[1733717987464,0.93340392,232.12,231.99,20.0]
[1733717987842,0.93340392,232.12,232.01,20.0]
[1733717990747,0.12549,232.12,232.0,8.54682263]
[1733717991371,0.12549,232.12,231.99,28.54682263]
[1733717991672,0.12549,232.12,232.0,8.54682263]
[1733717991858,0.12549,232.12,231.99,28.54682263]
[1733717992884,0.12549,232.12,232.0,8.54682263]
[1733717996687,6.0607,232.13,232.01,8.54682263]
[1733717997575,6.641,232.24,232.07,8.54682263]
[1733717997782,0.80764487,232.23,232.07,8.54682263]
[1733717999489,0.12549,232.2,232.09,8.54682263]
[1733717999786,0.93308078,232.2,232.09,8.54682263]
[1733717999964,0.93308078,232.2,232.08,8.54682263]
[1733718000167,0.93308078,232.2,232.07,8.54682263]
[1733718002888,0.93308078,232.2,232.02,10.7749]
[1733718002889,0.12549,232.18,232.05,28.54682263]
[1733718003193,0.12549,232.18,231.96,8.54682263]
[1733718003194,20.0,232.14,231.98,91.4766]
[1733718003366,0.12549,232.12,231.99,8.54682263]
[1733718003994,23.902374,232.12,231.98,1.7291499]
[1733718004185,20.0,232.09,231.96,8.54682263]
[1733718004496,0.12549,232.12,232.0,8.54682263]
[1733718004660,20.0,232.14,231.96,10.7777]
[1733718004661,0.12549,232.13,232.01,8.54682263]
[1733718004868,0.12549,232.13,232.02,8.54682263]
[1733718005295,0.93330647,232.13,232.0,8.54682263]
[1733718005594,0.12549,232.13,232.02,8.54682263]
[1733718006305,0.12549,232.13,231.96,44.96499052]
[1733718006306,23.776884,232.12,231.96,10.7777]
[1733718006594,0.93347328,232.11,231.96,19.32452263]
[1733718006765,0.93347328,232.11,231.97,8.54682263]
[1733718007198,0.93347328,232.11,231.98,8.54682263]
[1733718007694,0.93347328,232.11,231.97,8.54682263]
[1733718007868,0.93347328,232.11,231.98,8.54682263]
[1733718008074,0.12549,232.12,232.02,8.54682263]
[1733718008395,0.12549,232.12,232.01,8.54682263]
[1733718008585,0.12549,232.12,232.02,8.54682263]
[1733718008967,0.80796519,232.13,232.02,8.54682263]
[1733718009165,6.641,232.17,232.06,8.54682263]
[1733718009397,6.641,232.17,232.08,8.54682263]
[1733718009595,6.641,232.17,232.09,8.54682263]
[1733718009971,6.641,232.17,232.08,8.54682263]
[1733718010387,6.641,232.17,232.04,23.776884]
[1733718010699,6.641,232.17,232.03,20.0]
[1733718010700,6.641,232.17,232.07,8.54682263]
[1733718012187,6.641,232.17,232.03,30.7742]
[1733718012490,0.93311211,232.16,232.02,8.54682263]
[1733718012877,0.93311211,232.16,232.03,8.54682263]
[1733718013287,0.93311211,232.16,232.04,8.54682263]
[1733718013582,6.641,232.17,232.04,20.0]
[1733718013882,6.641,232.17,232.06,8.54682263]
[1733718014901,6.641,232.17,232.11,8.54682263]
[1733718015219,6.6098,232.26,232.11,8.54682263]
[1733718015373,6.6098,232.26,232.05,1.5355]
[1733718015374,0.80749161,232.25,232.06,43.776884]
[1733718015578,0.80749161,232.25,232.08,8.54682263]
[1733718015880,0.80749161,232.25,232.1,8.54682263]
[1733718016296,20.0,232.23,232.1,8.54682263]
[1733718016500,20.0,232.23,232.07,20.0]
[1733718016501,0.93303594,232.22,232.07,20.0]
[1733718016706,0.93303594,232.22,232.07,28.54682263]
[1733718016707,0.12549,232.2,232.07,28.54682263]
[1733718017006,20.0,232.21,232.08,8.54682263]
[1733718017212,20.0,232.23,232.08,8.54682263]
[1733718017385,0.12549,232.21,232.09,8.54682263]
[1733718017579,0.12549,232.21,232.11,8.54682263]
[1733718017783,0.80754223,232.22,232.13,20.0]
[1733718018125,6.6098,232.26,232.17,8.54682263]
[1733718018409,6.6098,232.26,232.14,20.0]
[1733718018613,6.6098,232.26,232.16,8.54682263]
[1733718018789,6.6098,232.26,232.17,8.54682263]
[1733718018982,6.6098,232.26,232.18,8.54682263]
[1733718019511,6.6098,232.26,232.15,8.54682263]
[1733718020321,20.0,232.23,232.07,23.776884]
[1733718020489,20.0,232.23,232.1,8.54682263]
[1733718020689,20.0,232.23,232.06,10.7726]
[1733718020690,0.12549,232.21,232.08,8.54682263]
[1733718022000,20.0,232.23,232.12,8.54682263]
[1733718022198,0.12549,232.25,232.14,8.54682263]
[1733718022393,6.6098,232.26,232.14,8.54682263]
[1733718022586,6.6098,232.26,232.13,8.54682263]
[1733718023187,6.6098,232.26,232.13,13.36356289]
[1733718024817,6.6098,232.26,232.14,13.36356289]
[1733718025116,6.6098,232.26,232.15,13.36356289]
[1733718025690,6.6098,232.26,232.17,13.36356289]
[1733718025892,6.6098,232.26,232.18,13.36356289]
[1733718026088,6.5156,232.32,232.19,13.36356289]
[1733718026320,6.5156,232.32,232.21,13.36356289]
[1733718028994,6.5156,232.32,232.22,13.36356289]
[1733718029194,6.5156,232.32,232.24,13.36356289]
[1733718029422,6.5156,232.32,232.15,1.87819196]
[1733718029423,6.5156,232.32,232.25,13.36356289]
[1733718030426,29.994274,232.43,232.26,13.36356289]
[1733718030597,0.80695175,232.42,232.29,13.36356289]
[1733718030930,0.80695175,232.42,232.24,20.0]
[1733718030931,0.80695175,232.42,232.3,13.36356289]
[1733718031722,0.80695175,232.42,232.29,13.36356289]
[1733718031927,0.80695175,232.42,232.28,13.36356289]
[1733718032231,0.80695175,232.42,232.24,20.0]
[1733718032405,0.80695175,232.42,232.25,20.0]
[1733718032406,6.4401,232.41,232.25,20.0]
[1733718032603,23.902374,232.37,232.21,13.36356289]
[1733718032923,6.5521,232.34,232.21,13.36356289]
[1733718033123,0.93265199,232.33,232.19,13.36356289]
[1733718033499,0.93265199,232.33,232.2,13.36356289]
[1733718033901,0.93265199,232.33,232.21,13.36356289]
[1733718035026,0.93265199,232.33,232.2,13.36356289]
[1733718035939,0.93265199,232.33,232.21,13.36356289]
[1733718037411,0.93265199,232.33,232.22,13.36356289]
[1733718037643,0.12549,232.31,232.18,33.36356289]
[1733718037934,0.93277437,232.31,232.21,20.0]
[1733718039436,23.776884,232.3,232.18,13.36356289]
[1733718039624,0.93283345,232.29,232.16,13.36356289]
[1733718040335,23.776884,232.28,232.15,13.36356289]
[1733718040536,0.12549,232.26,232.15,13.36356289]
[1733718041307,23.902374,232.28,232.15,13.36356289]
[1733718041505,0.12549,232.26,232.15,13.36356289]
[1733718042536,6.3521,232.25,232.13,13.36356289]
[1733718042735,0.93297438,232.24,232.12,13.36356289]
[1733718042942,23.776884,232.23,232.1,13.36356289]
[1733718043239,20.0,232.18,232.06,1.7037884]
[1733718043541,0.93316276,232.17,232.04,13.36356289]
[1733718044041,0.12549,232.15,232.04,13.36356289]
[1733718044338,0.93326951,232.15,232.03,13.36356289]
[1733718044546,0.93326951,232.15,232.04,13.36356289]
[1733718044749,0.93326951,232.15,232.03,13.36356289]
[1733718045312,0.93326951,232.15,232.02,13.36356289]
[1733718045841,23.776884,232.14,232.02,13.36356289]
[1733718046013,0.12549,232.12,232.02,13.36356289]
[1733718046436,0.12549,232.12,231.99,13.36356289]
[1733718046814,0.12549,232.12,232.01,13.36356289]
[1733718048114,0.12549,232.12,232.0,13.36356289]
[1733718048344,23.902374,232.12,231.97,13.36356289]
[1733718048555,0.12549,232.08,231.96,13.36356289]
[1733718048709,0.80806643,232.08,231.96,13.36356289]
[1733718048915,0.12549,232.07,231.96,13.36356289]
[1733718049949,0.80806447,232.06,231.94,13.36356289]